[Event "EIRCC 2019"]
[Site "Tallinn"]
[Date "2019.12.06"]
[Round "10.23"]
[White "Martynov, Roman"]
[Black "Studer, Noel"]
[Result "0-1"]
[ECO "D20"]
[WhiteElo "2322"]
[BlackElo "2546"]
[Annotator "ChessBase"]
[PlyCount "86"]
[EventDate "2019.12.05"]
[EventType "swiss"]
[EventCountry "EST"]
[SourceTitle "playchess.com"]
[Source "ChessBase"]
[SourceQuality "1"]
[TimeControl "900+10"]

1. d4 {[%emt 0:00:00]} d5 {[%emt 0:00:00]} 2. c4 {[%emt 0:00:00]} dxc4 {[%emt 0:00:00]} 3. e3 {[%emt 0:00:01]} Nf6 {[%emt 0:00:00]} 4. Bxc4 {[%emt 0:00:13]} e6 {[%emt 0:00:00]} 5. Nf3 {[%emt 0:00:10]} a6 {[%emt 0:00:00]} 6. O-O {[%emt 0:00:11]} c5 {[%emt 0:00:00]} 7. dxc5 {[%emt 0:00:15]} Bxc5 {[%emt 0:00:00]} 8. Qxd8+ {[%emt 0:00:36]} Kxd8 {[%emt 0:00:00]} 9. Ne5 {[%emt 0:00:01]} Ke7 {[%emt 0:00:00]} 10. Be2 {[%emt 0:00:03]} Nbd7 {[%emt 0:00:20]} 11. Nc4 {[%emt 0:02:32]} b6 {[%emt 0:00:02]} 12. Nbd2 {[%emt 0:02:42]} a5 {[%emt 0:00:01]} 13. Nb3 {[%emt 0:00:04]} Ba6 {[%emt 0:00:01]} 14. Nxc5 {[%emt 0:00:14]} bxc5 {[%emt 0:00:01]} 15. b3 {[%emt 0:00:27]} Rhb8 {[%emt 0:01:36]} 16. Ba3 {[%emt 0:02:45]} a4 {[%emt 0:00:08]} 17. Rfb1 {[%emt 0:00:01]} Nd5 {[%emt 0:00:15]} 18. Bf3 {[%emt 0:00:02]} axb3 {[%emt 0:05:02]} 19. axb3 {[%emt 0:00:01]} Bxc4 {[%emt 0:00:01]} 20. bxc4 {[%emt 0:00:01]} Rxa3 {[%emt 0:00:05]} 21. cxd5 {[%emt 0:00:21]} Ne5 {[%emt 0:00:41]} 22. dxe6 {[%emt 0:00:20]} Nxf3+ {[%emt 0:00:08]} 23. gxf3 {[%emt 0:00:01]} Kxe6 {[%emt 0:00:03]} 24. Rxb8 {[%emt 0:00:47]} Rxa1+ {[%emt 0:00:01]} 25. Kg2 {[%emt 0:00:01]} Ra7 {[%emt 0:00:01]} 26. Rc8 {[%emt 0:00:48]} Kd5 {[%emt 0:00:03]} 27. f4 {[%emt 0:02:15]} Kc4 {[%emt 0:00:17]} 28. f5 {[%emt 0:00:54]} f6 {[%emt 0:00:57]} 29. f4 {[%emt 0:00:04]} Kb4 {[%emt 0:00:22]} 30. e4 {[%emt 0:00:13]} Re7 {[%emt 0:00:02]} 31. Kf3 {[%emt 0:00:17]} c4 {[%emt 0:00:09]} 32. Ke3 {[%emt 0:00:01]} Kb3 {[%emt 0:01:15]} 33. Rb8+ {[%emt 0:00:54]} Kc2 {[%emt 0:00:57]} 34. Kd4 {[%emt 0:00:03]} c3 {[%emt 0:00:02]} 35. e5 {[%emt 0:00:01]} Rd7+ {[%emt 0:00:01]} 36. Ke4 {[%emt 0:00:06]} Kd2 {[%emt 0:04:38]} 37. e6 {[%emt 0:01:29]} Rc7 {[%emt 0:00:01]} 38. Kd5 {[%emt 0:00:12]} c2 {[%emt 0:00:30]} 39. Rb2 {[%emt 0:00:03]} Ke3 {[%emt 0:00:01]} 40. Rxc2 {[%emt 0:01:39]} Rxc2 {[%emt 0:00:02]} 41. e7 {[%emt 0:00:01]} Rc8 {[%emt 0:00:01]} 42. Ke6 {[%emt 0:00:01]} Kxf4 {[%emt 0:00:05]} 43. Kd7 {[%emt 0:00:01]} Ra8 {[%emt 0:00:02]} 0-1

[Event "EIRCC 2019"]
[Site "Tallinn"]
[Date "2019.12.06"]
[Round "10.25"]
[White "Pershin, Denis"]
[Black "Sanz Wawer, Daniel"]
[Result "1/2-1/2"]
[ECO "B12"]
[WhiteElo "2389"]
[BlackElo "2212"]
[Annotator "NA"]
[PlyCount "94"]
[EventDate "2019.12.05"]
[EventType "swiss"]
[EventCountry "EST"]
[SourceTitle "playchess.com"]
[Source "ChessBase"]
[SourceQuality "1"]
[TimeControl "900+10"]

1. e4 {[%emt 0:00:00]} c6 {[%emt 0:00:00]} 2. d4 {[%emt 0:00:00]} d5 {[%emt 0:00:00]} 3. e5 {[%emt 0:00:00]} c5 {[%emt 0:00:00]} 4. dxc5 {[%emt 0:00:00]} e6 {[%emt 0:00:00]} 5. a3 {[%emt 0:00:00]} Bxc5 {[%emt 0:00:00]} 6. b4 {[%emt 0:00:00]} Be7 {[%emt 0:00:00]} 7. Bb2 {[%emt 0:01:09]} a5 {[%emt 0:00:00]} 8. b5 {[%emt 0:00:05]} Nd7 {[%emt 0:00:30]} 9. Nd2 {[%emt 0:00:47]} Nh6 {[%emt 0:00:14]} 10. Ngf3 {[%emt 0:00:36]} Nc5 {[%emt 0:00:50]} 11. c4 {[%emt 0:01:00]} O-O {[%emt 0:01:19]} 12. Qc2 {[%emt 0:00:11]} Bd7 {[%emt 0:01:01]} 13. Be2 {[%emt 0:00:02]} Rc8 {[%emt 0:00:05]} 14. O-O {[%emt 0:00:24]} Nf5 {[%emt 0:00:47]} 15. Rfd1 {[%emt 0:01:07]} Qc7 {[%emt 0:01:21]} 16. Nf1 {[%emt 0:02:17]} Ne4 {[%emt 0:01:20]} 17. Qd3 {[%emt 0:02:59]} Bc5 {[%emt 0:01:43]} 18. Nd4 {[%emt 0:01:00]} Qxe5 {[%emt 0:01:40]} 19. cxd5 {[%emt 0:00:39]} Bxd4 {[%emt 0:01:57]} 20. Bxd4 {[%emt 0:00:03]} Nxd4 {[%emt 0:00:05]} 21. Qxd4 {[%emt 0:00:02]} Qxd4 {[%emt 0:00:07]} 22. Rxd4 {[%emt 0:00:01]} Nc3 {[%emt 0:00:04]} 23. Bf3 {[%emt 0:00:49]} Nxb5 {[%emt 0:00:43]} 24. Rd2 {[%emt 0:00:00]} exd5 {[%emt 0:01:03]} 25. Bxd5 {[%emt 0:00:01]} Bc6 {[%emt 0:00:15]} 26. a4 {[%emt 0:01:07]} Nc3 {[%emt 0:01:05]} 27. Bxc6 {[%emt 0:00:01]} Rxc6 {[%emt 0:00:02]} 28. Rd7 {[%emt 0:00:07]} Rb8 {[%emt 0:01:26]} 29. Ne3 {[%emt 0:00:15]} g6 {[%emt 0:00:12]} 30. g3 {[%emt 0:00:25]} b5 {[%emt 0:00:04]} 31. axb5 {[%emt 0:00:28]} Rxb5 {[%emt 0:00:04]} 32. Ng4 {[%emt 0:00:26]} Kg7 {[%emt 0:00:27]} 33. Ra7 {[%emt 0:00:42]} a4 {[%emt 0:00:44]} 34. Re1 {[%emt 0:00:17]} Rb1 {[%emt 0:01:09]} 35. Rxb1 {[%emt 0:00:07]} Nxb1 {[%emt 0:00:01]} 36. Rxa4 {[%emt 0:00:08]} Rc7 {[%emt 0:00:13]} 37. Ra6 {[%emt 0:00:24]} Nc3 {[%emt 0:00:14]} 38. Nf6 {[%emt 0:00:02]} Re7 {[%emt 0:00:12]} 39. h4 {[%emt 0:00:01]} Ne4 {[%emt 0:00:11]} 40. Nd5 {[%emt 0:00:56]} Rd7 {[%emt 0:00:02]} 41. Ra5 {[%emt 0:00:01]} Nf6 {[%emt 0:00:07]} 42. Nf4 {[%emt 0:00:41]} Rb7 {[%emt 0:00:09]} 43. Kg2 {[%emt 0:00:13]} Rd7 {[%emt 0:00:06]} 44. Ra6 {[%emt 0:00:30]} Rb7 {[%emt 0:00:07]} 45. Rd6 {[%emt 0:00:10]} Rd7 {[%emt 0:00:14]} 46. Rb6 {[%emt 0:00:02]} Nd5 {[%emt 0:00:20]} 47. Nxd5 {[%emt 0:00:17]} Rxd5 {[%emt 0:00:02]} 1/2-1/2

[Event "EIRCC 2019"]
[Site "Tallinn"]
[Date "2019.12.06"]
[Round "10.27"]
[White "Hjartarson, Johann"]
[Black "Kononenko, Dmitry"]
[Result "1/2-1/2"]
[ECO "A36"]
[WhiteElo "2524"]
[BlackElo "2316"]
[Annotator "ChessBase"]
[PlyCount "113"]
[EventDate "2019.12.05"]
[EventType "swiss"]
[EventCountry "EST"]
[SourceTitle "playchess.com"]
[Source "ChessBase"]
[SourceQuality "1"]
[TimeControl "900+10"]

1. c4 {[%emt 0:00:00]} c5 {[%emt 0:00:00]} 2. g3 {[%emt 0:00:00]} g6 {[%emt 0:00:00]} 3. Bg2 {[%emt 0:00:01]} Bg7 {[%emt 0:00:00]} 4. Nc3 {[%emt 0:00:04]} Nc6 {[%emt 0:00:01]} 5. a3 {[%emt 0:00:03]} d6 {[%emt 0:00:47]} 6. Rb1 {[%emt 0:00:32]} a5 {[%emt 0:00:52]} 7. Nf3 {[%emt 0:00:21]} Nf6 {[%emt 0:00:26]} 8. O-O {[%emt 0:00:06]} Bf5 {[%emt 0:00:05]} 9. d3 {[%emt 0:00:05]} Qd7 {[%emt 0:00:04]} 10. Re1 {[%emt 0:00:56]} Bh3 {[%emt 0:00:14]} 11. Bh1 {[%emt 0:00:06]} h5 {[%emt 0:00:03]} 12. Bg5 {[%emt 0:01:51]} Rb8 {[%emt 0:04:00]} 13. Qd2 {[%emt 0:00:15]} Ng4 {[%emt 0:00:21]} 14. Nd5 {[%emt 0:00:53]} f6 {[%emt 0:01:12]} 15. Be3 {[%emt 0:01:01]} Kf7 {[%emt 0:01:14]} 16. d4 {[%emt 0:02:26]} Nxe3 {[%emt 0:00:40]} 17. Qxe3 {[%emt 0:00:06]} Bh6 {[%emt 0:04:02]} 18. Qc3 {[%emt 0:00:12]} cxd4 {[%emt 0:00:03]} 19. Nxd4 {[%emt 0:00:04]} Nxd4 {[%emt 0:00:19]} 20. Qxd4 {[%emt 0:00:03]} Kg7 {[%emt 0:01:00]} 21. Rbd1 {[%emt 0:00:18]} Rhd8 {[%emt 0:01:24]} 22. Qb6 {[%emt 0:03:43]} a4 {[%emt 0:00:38]} 23. Rd4 {[%emt 0:00:55]} Be6 {[%emt 0:00:17]} 24. Red1 {[%emt 0:00:12]} Bxd5 {[%emt 0:00:04]} 25. Bxd5 {[%emt 0:00:07]} Rdc8 {[%emt 0:00:37]} 26. h4 {[%emt 0:00:19]} Rc5 {[%emt 0:00:18]} 27. Qb4 {[%emt 0:00:09]} b6 {[%emt 0:00:03]} 28. Bf3 {[%emt 0:00:09]} Qa7 {[%emt 0:00:06]} 29. Rd5 {[%emt 0:00:57]} Rbc8 {[%emt 0:00:21]} 30. Rxc5 {[%emt 0:00:07]} bxc5 {[%emt 0:00:10]} 31. Qc3 {[%emt 0:00:06]} Rb8 {[%emt 0:00:02]} 32. Qc2 {[%emt 0:00:27]} Rb3 {[%emt 0:00:26]} 33. Bc6 {[%emt 0:00:14]} Qb6 {[%emt 0:00:05]} 34. Bb5 {[%emt 0:00:02]} Qb7 {[%emt 0:00:25]} 35. Rd3 {[%emt 0:00:09]} Qe4 {[%emt 0:00:15]} 36. Bxa4 {[%emt 0:00:39]} Rxd3 {[%emt 0:00:02]} 37. Qxd3 {[%emt 0:00:21]} Qxd3 {[%emt 0:00:04]} 38. exd3 {[%emt 0:00:02]} Bc1 {[%emt 0:00:01]} 39. b4 {[%emt 0:00:02]} Bxa3 {[%emt 0:00:06]} 40. b5 {[%emt 0:00:01]} Bb4 {[%emt 0:00:03]} 41. b6 {[%emt 0:00:02]} Ba5 {[%emt 0:00:01]} 42. b7 {[%emt 0:00:02]} Bc7 {[%emt 0:00:01]} 43. Be8 {[%emt 0:00:07]} f5 {[%emt 0:00:50]} 44. Kg2 {[%emt 0:00:28]} Kf6 {[%emt 0:00:02]} 45. Kf3 {[%emt 0:00:04]} e6 {[%emt 0:00:08]} 46. Ke3 {[%emt 0:00:05]} d5 {[%emt 0:00:18]} 47. d4 {[%emt 0:00:51]} cxd4+ {[%emt 0:00:26]} 48. Kxd4 {[%emt 0:00:02]} dxc4 {[%emt 0:00:03]} 49. Kxc4 {[%emt 0:00:10]} f4 {[%emt 0:00:06]} 50. gxf4 {[%emt 0:00:04]} Bxf4 {[%emt 0:00:19]} 51. Bd7 {[%emt 0:00:39]} Bb8 {[%emt 0:00:13]} 52. Kc5 {[%emt 0:00:10]} e5 {[%emt 0:00:05]} 53. Kd5 {[%emt 0:00:30]} g5 {[%emt 0:00:02]} 54. hxg5+ {[%emt 0:00:07]} Kxg5 {[%emt 0:00:01]} 55. Ke4 {[%emt 0:00:24]} h4 {[%emt 0:00:12]} 56. Bh3 {[%emt 0:00:17]} Bc7 {[%emt 0:00:01]} 57. f3 1/2-1/2

[Event "EIRCC 2019"]
[Site "Tallinn"]
[Date "2019.12.06"]
[Round "10.28"]
[White "Kanep, Siim"]
[Black "Mohr, Georg"]
[Result "1/2-1/2"]
[ECO "B06"]
[WhiteElo "2180"]
[BlackElo "2433"]
[Annotator "NA"]
[PlyCount "65"]
[EventDate "2019.12.05"]
[EventType "swiss"]
[EventCountry "EST"]
[SourceTitle "playchess.com"]
[Source "ChessBase"]
[SourceQuality "1"]
[TimeControl "900+10"]

1. d4 {[%emt 0:00:00]} g6 {[%emt 0:00:00]} 2. e4 {[%emt 0:00:00]} Bg7 {[%emt 0:00:00]} 3. Nc3 {[%emt 0:00:00]} d6 {[%emt 0:00:10]} 4. Be3 {[%emt 0:00:05]} a6 {[%emt 0:00:03]} 5. Qd2 {[%emt 0:00:07]} b5 {[%emt 0:00:06]} 6. Nf3 {[%emt 0:00:22]} Bb7 {[%emt 0:00:04]} 7. Bd3 {[%emt 0:00:08]} Nd7 {[%emt 0:00:09]} 8. O-O {[%emt 0:01:14]} e6 {[%emt 0:02:02]} 9. a4 {[%emt 0:00:19]} b4 {[%emt 0:00:43]} 10. Ne2 {[%emt 0:00:01]} a5 {[%emt 0:00:05]} 11. Ng3 {[%emt 0:00:17]} Ne7 {[%emt 0:00:46]} 12. Bh6 {[%emt 0:00:08]} O-O {[%emt 0:00:02]} 13. Bxg7 {[%emt 0:00:02]} Kxg7 {[%emt 0:00:01]} 14. c3 {[%emt 0:00:06]} c5 {[%emt 0:00:47]} 15. Bb5 {[%emt 0:01:23]} Nf6 {[%emt 0:00:17]} 16. Rfe1 {[%emt 0:00:27]} h6 {[%emt 0:02:07]} 17. Rad1 {[%emt 0:00:24]} cxd4 {[%emt 0:01:45]} 18. Nxd4 {[%emt 0:01:26]} bxc3 {[%emt 0:00:32]} 19. bxc3 {[%emt 0:00:01]} Qc7 {[%emt 0:00:32]} 20. Bd3 {[%emt 0:00:33]} e5 {[%emt 0:00:10]} 21. Nb5 {[%emt 0:00:02]} Qc5 {[%emt 0:00:13]} 22. Bc2 {[%emt 0:00:17]} d5 {[%emt 0:05:13]} 23. exd5 {[%emt 0:00:09]} Nexd5 {[%emt 0:00:00]} 24. Rxe5 {[%emt 0:00:37]} Rfe8 {[%emt 0:00:24]} 25. Qd4 {[%emt 0:01:48]} Qxd4 {[%emt 0:00:14]} 26. cxd4 {[%emt 0:00:02]} Rad8 {[%emt 0:01:17]} 27. Rxe8 {[%emt 0:00:18]} Nxe8 {[%emt 0:00:02]} 28. Ne4 {[%emt 0:02:05]} Bc6 {[%emt 0:00:02]} 29. f3 {[%emt 0:01:59]} Nef6 {[%emt 0:01:07]} 30. Nxf6 {[%emt 0:00:12]} Kxf6 {[%emt 0:00:01]} 31. Be4 {[%emt 0:00:07]} Bxb5 {[%emt 0:00:06]} 32. axb5 {[%emt 0:00:05]} Nc3 {[%emt 0:00:01]} 33. Ra1 {[%emt 0:00:34]} 1/2-1/2

[Event "EIRCC 2019"]
[Site "Tallinn"]
[Date "2019.12.06"]
[Round "10.29"]
[White "Pohjala, Henri"]
[Black "Meyer, Falko"]
[Result "1-0"]
[ECO "A40"]
[WhiteElo "2350"]
[BlackElo "2208"]
[Annotator "NA"]
[PlyCount "83"]
[EventDate "2019.12.05"]
[EventType "swiss"]
[EventCountry "EST"]
[SourceTitle "playchess.com"]
[Source "ChessBase"]
[SourceQuality "1"]
[TimeControl "900+10"]

1. d4 {[%emt 0:00:00]} c6 {[%emt 0:00:00]} 2. Nf3 {[%emt 0:00:00]} d5 {[%emt 0:00:00]} 3. g3 {[%emt 0:00:29]} Nf6 {[%emt 0:00:00]} 4. Bg2 {[%emt 0:00:01]} a6 {[%emt 0:00:06]} 5. O-O {[%emt 0:00:05]} g6 {[%emt 0:00:04]} 6. b3 {[%emt 0:00:08]} Bg7 {[%emt 0:00:02]} 7. c4 {[%emt 0:00:10]} O-O {[%emt 0:00:05]} 8. Bb2 {[%emt 0:00:04]} Ne4 {[%emt 0:00:21]} 9. Nbd2 {[%emt 0:01:18]} Nxd2 {[%emt 0:00:03]} 10. Qxd2 {[%emt 0:00:11]} Nd7 {[%emt 0:00:49]} 11. cxd5 {[%emt 0:02:43]} cxd5 {[%emt 0:00:02]} 12. Rac1 {[%emt 0:02:17]} Re8 {[%emt 0:01:34]} 13. Ne5 {[%emt 0:01:47]} e6 {[%emt 0:02:40]} 14. Rfd1 {[%emt 0:02:28]} f5 {[%emt 0:01:55]} 15. Nd3 {[%emt 0:00:55]} a5 {[%emt 0:03:25]} 16. Rc2 {[%emt 0:02:39]} b6 {[%emt 0:00:16]} 17. Rdc1 {[%emt 0:00:55]} Ba6 {[%emt 0:00:29]} 18. Nf4 {[%emt 0:00:11]} Bh6 {[%emt 0:02:00]} 19. Ba3 {[%emt 0:01:00]} Nf6 {[%emt 0:00:39]} 20. Rc6 {[%emt 0:00:34]} Rc8 {[%emt 0:00:15]} 21. Rxc8 {[%emt 0:00:16]} Bxc8 {[%emt 0:00:02]} 22. Qc2 {[%emt 0:00:04]} Bd7 {[%emt 0:00:20]} 23. Bd6 {[%emt 0:00:20]} Qa8 {[%emt 0:00:12]} 24. Qb2 {[%emt 0:00:10]} Rc8 {[%emt 0:00:03]} 25. Rc2 {[%emt 0:00:05]} Rc6 {[%emt 0:00:02]} 26. Be5 {[%emt 0:00:12]} Ng4 {[%emt 0:00:05]} 27. Nd3 {[%emt 0:00:13]} Rxc2 {[%emt 0:00:36]} 28. Qxc2 {[%emt 0:00:02]} Bb5 {[%emt 0:00:01]} 29. Qc7 {[%emt 0:00:13]} Bxd3 {[%emt 0:00:38]} 30. exd3 {[%emt 0:00:01]} Bf8 {[%emt 0:00:34]} 31. Qd7 {[%emt 0:00:17]} Nxe5 {[%emt 0:00:31]} 32. dxe5 {[%emt 0:00:01]} Bc5 {[%emt 0:00:10]} 33. Qxe6+ {[%emt 0:00:03]} Kg7 {[%emt 0:00:03]} 34. Bxd5 {[%emt 0:00:19]} Qd8 {[%emt 0:00:04]} 35. h4 {[%emt 0:00:12]} Kh6 {[%emt 0:00:11]} 36. Kg2 {[%emt 0:00:10]} f4 {[%emt 0:00:02]} 37. Be4 {[%emt 0:00:25]} fxg3 {[%emt 0:00:04]} 38. fxg3 {[%emt 0:00:02]} Qd4 {[%emt 0:00:02]} 39. Qf6 {[%emt 0:00:12]} Qg1+ {[%emt 0:02:12]} 40. Kh3 {[%emt 0:00:01]} Be7 {[%emt 0:00:01]} 41. Qxe7 {[%emt 0:00:18]} Qf1+ {[%emt 0:00:01]} 42. Bg2 {[%emt 0:00:07]} 1-0

[Event "EIRCC 2019"]
[Site "Tallinn"]
[Date "2019.12.06"]
[Round "10.30"]
[White "Dragnev, Valentin"]
[Black "Valner, Uku"]
[Result "1-0"]
[ECO "A40"]
[WhiteElo "2553"]
[BlackElo "2302"]
[Annotator "ChessBase"]
[PlyCount "41"]
[EventDate "2019.12.05"]
[EventType "swiss"]
[EventCountry "EST"]
[SourceTitle "playchess.com"]
[Source "ChessBase"]
[SourceQuality "1"]
[TimeControl "900+10"]

1. d4 {[%emt 0:00:00]} e6 {[%emt 0:00:00]} 2. c4 {[%emt 0:00:00]} b6 {[%emt 0:00:01]} 3. e4 {[%emt 0:00:08]} Bb7 {[%emt 0:00:01]} 4. Nc3 {[%emt 0:00:07]} Bb4 {[%emt 0:00:01]} 5. f3 {[%emt 0:00:07]} Bxc3+ {[%emt 0:00:33]} 6. bxc3 {[%emt 0:00:01]} d6 {[%emt 0:00:02]} 7. Bd3 {[%emt 0:00:04]} Nd7 {[%emt 0:00:05]} 8. Ne2 {[%emt 0:00:19]} Ngf6 {[%emt 0:00:56]} 9. O-O {[%emt 0:00:02]} Qe7 {[%emt 0:00:16]} 10. a4 {[%emt 0:00:09]} a5 {[%emt 0:00:10]} 11. Rb1 {[%emt 0:01:09]} h6 {[%emt 0:01:12]} 12. Ng3 {[%emt 0:00:38]} g6 {[%emt 0:02:01]} 13. f4 {[%emt 0:00:23]} e5 {[%emt 0:00:49]} 14. fxe5 {[%emt 0:00:27]} dxe5 {[%emt 0:00:02]} 15. c5 {[%emt 0:00:08]} Ba6 {[%emt 0:01:44]} 16. Bxa6 {[%emt 0:01:45]} Rxa6 {[%emt 0:00:01]} 17. c6 {[%emt 0:00:01]} Nb8 {[%emt 0:00:37]} 18. Qf3 {[%emt 0:01:04]} Ng8 {[%emt 0:00:08]} 19. Ba3 {[%emt 0:00:18]} Qxa3 {[%emt 0:00:41]} 20. Qxf7+ {[%emt 0:00:03]} Kd8 {[%emt 0:00:01]} 21. Qg7 {[%emt 0:00:11]} 1-0

[Event "EIRCC 2019"]
[Site "Tallinn"]
[Date "2019.12.06"]
[Round "10.32"]
[White "Nestor, Kaarel"]
[Black "Frischmann, Rick"]
[Result "1/2-1/2"]
[ECO "D02"]
[WhiteElo "2154"]
[BlackElo "2355"]
[Annotator "NA"]
[PlyCount "142"]
[EventDate "2019.12.05"]
[EventType "swiss"]
[EventCountry "EST"]
[SourceTitle "playchess.com"]
[Source "ChessBase"]
[SourceQuality "1"]
[TimeControl "900+10"]

1. d4 {[%emt 0:00:00]} d5 {[%emt 0:00:00]} 2. Nf3 {[%emt 0:00:00]} Nc6 {[%emt 0:00:00]} 3. Bf4 {[%emt 0:00:07]} Bg4 {[%emt 0:00:00]} 4. e3 {[%emt 0:00:09]} e6 {[%emt 0:00:00]} 5. Be2 {[%emt 0:00:02]} Bd6 {[%emt 0:00:01]} 6. Bg3 {[%emt 0:00:02]} Nf6 {[%emt 0:00:02]} 7. Nbd2 {[%emt 0:00:09]} O-O {[%emt 0:00:06]} 8. O-O {[%emt 0:00:09]} Qe7 {[%emt 0:00:12]} 9. Ne5 {[%emt 0:01:06]} Bxe2 {[%emt 0:00:30]} 10. Nxc6 {[%emt 0:00:05]} Bxd1 {[%emt 0:00:21]} 11. Nxe7+ {[%emt 0:00:02]} Bxe7 {[%emt 0:00:03]} 12. Rfxd1 {[%emt 0:00:05]} c5 {[%emt 0:00:33]} 13. c3 {[%emt 0:00:09]} Rac8 {[%emt 0:02:11]} 14. Bh4 {[%emt 0:02:04]} h6 {[%emt 0:03:16]} 15. Rac1 {[%emt 0:00:57]} g5 {[%emt 0:00:30]} 16. Bg3 {[%emt 0:00:02]} Rfd8 {[%emt 0:00:09]} 17. Kf1 {[%emt 0:00:26]} b5 {[%emt 0:00:53]} 18. dxc5 {[%emt 0:00:34]} Bxc5 {[%emt 0:00:02]} 19. Nb3 {[%emt 0:00:01]} Bb6 {[%emt 0:00:11]} 20. Nd4 {[%emt 0:00:36]} a6 {[%emt 0:00:06]} 21. f3 {[%emt 0:00:10]} Nd7 {[%emt 0:00:11]} 22. Ke2 {[%emt 0:00:23]} Nc5 {[%emt 0:00:01]} 23. Rc2 {[%emt 0:00:19]} Na4 {[%emt 0:00:13]} 24. Rdc1 {[%emt 0:00:11]} Ba7 {[%emt 0:02:50]} 25. h4 {[%emt 0:00:20]} Kf8 {[%emt 0:00:23]} 26. Rh1 {[%emt 0:02:36]} Ke7 {[%emt 0:00:14]} 27. hxg5 {[%emt 0:00:01]} hxg5 {[%emt 0:00:01]} 28. Rh5 {[%emt 0:00:01]} b4 {[%emt 0:01:22]} 29. cxb4 {[%emt 0:00:46]} Bxd4 {[%emt 0:00:10]} 30. Rxc8 {[%emt 0:00:02]} Rxc8 {[%emt 0:00:04]} 31. exd4 {[%emt 0:00:01]} Rc2+ {[%emt 0:00:05]} 32. Kf1 {[%emt 0:00:05]} Rxb2 {[%emt 0:01:05]} 33. Rxg5 {[%emt 0:00:01]} Rxb4 {[%emt 0:00:03]} 34. Bh4 {[%emt 0:00:03]} Kd6 {[%emt 0:00:37]} 35. Rg7 {[%emt 0:00:18]} Rb7 {[%emt 0:00:30]} 36. Bf6 {[%emt 0:00:40]} Nc3 {[%emt 0:00:04]} 37. a3 {[%emt 0:00:04]} a5 {[%emt 0:00:19]} 38. Rg8 {[%emt 0:00:07]} Kc7 {[%emt 0:01:18]} 39. Ra8 {[%emt 0:00:09]} a4 {[%emt 0:00:18]} 40. Be7 {[%emt 0:00:39]} Rb3 {[%emt 0:00:42]} 41. Bc5 {[%emt 0:00:21]} Kc6 {[%emt 0:00:13]} 42. Rc8+ {[%emt 0:00:12]} Kb5 {[%emt 0:00:08]} 43. Rf8 {[%emt 0:00:16]} f5 {[%emt 0:00:11]} 44. Re8 {[%emt 0:00:03]} Kc4 {[%emt 0:00:16]} 45. Rxe6 {[%emt 0:00:06]} f4 {[%emt 0:00:15]} 46. g4 {[%emt 0:00:08]} fxg3 {[%emt 0:00:28]} 47. Kg2 {[%emt 0:00:01]} Nb5 {[%emt 0:01:16]} 48. Ra6 {[%emt 0:00:13]} Nxd4 {[%emt 0:00:12]} 49. Bxd4 {[%emt 0:00:01]} Kxd4 {[%emt 0:00:01]} 50. Rxa4+ {[%emt 0:00:02]} Kc3 {[%emt 0:00:17]} 51. Kxg3 {[%emt 0:00:04]} d4 {[%emt 0:00:01]} 52. Ra8 {[%emt 0:00:05]} d3 {[%emt 0:00:05]} 53. Kf2 {[%emt 0:00:06]} Kc2 {[%emt 0:00:28]} 54. Rc8+ {[%emt 0:00:24]} Rc3 {[%emt 0:00:04]} 55. Rd8 {[%emt 0:00:01]} Rxa3 {[%emt 0:00:19]} 56. f4 {[%emt 0:00:02]} Rb3 {[%emt 0:00:14]} 57. Rd6 {[%emt 0:00:23]} Kc1 {[%emt 0:00:10]} 58. Rc6+ {[%emt 0:00:06]} Kd1 {[%emt 0:00:06]} 59. Rd6 {[%emt 0:00:01]} d2 {[%emt 0:00:03]} 60. f5 {[%emt 0:00:07]} Rb5 {[%emt 0:00:09]} 61. f6 {[%emt 0:00:14]} Rc5 {[%emt 0:00:20]} 62. Ke3 {[%emt 0:00:30]} Re5+ {[%emt 0:00:13]} 63. Kf4 {[%emt 0:00:17]} Re1 {[%emt 0:00:01]} 64. Kg5 {[%emt 0:00:04]} Ke2 {[%emt 0:00:17]} 65. f7 {[%emt 0:00:02]} Rg1+ {[%emt 0:00:02]} 66. Kh6 {[%emt 0:00:10]} Rf1 {[%emt 0:00:02]} 67. Re6+ {[%emt 0:00:03]} Kd3 {[%emt 0:00:04]} 68. Rd6+ {[%emt 0:00:05]} Kc2 {[%emt 0:00:01]} 69. Rc6+ {[%emt 0:00:02]} Kb2 {[%emt 0:00:02]} 70. Rb6+ {[%emt 0:00:03]} Kc2 {[%emt 0:00:01]} 71. Rc6+ {[%emt 0:00:03]} Kb2 {[%emt 0:00:03]} 1/2-1/2

[Event "EIRCC 2019"]
[Site "Tallinn"]
[Date "2019.12.06"]
[Round "10.33"]
[White "Askerov, Marat"]
[Black "Krutti, Valer"]
[Result "0-1"]
[ECO "A50"]
[WhiteElo "2335"]
[BlackElo "2295"]
[Annotator "NA"]
[PlyCount "54"]
[EventDate "2019.12.05"]
[EventType "swiss"]
[EventCountry "EST"]
[SourceTitle "playchess.com"]
[Source "ChessBase"]
[SourceQuality "1"]
[TimeControl "900+10"]

1. d4 {[%emt 0:00:00]} Nf6 {[%emt 0:00:00]} 2. c4 {[%emt 0:00:00]} c6 {[%emt 0:00:00]} 3. Nc3 {[%emt 0:00:01]} d5 {[%emt 0:00:00]} 4. cxd5 {[%emt 0:00:02]} cxd5 {[%emt 0:00:00]} 5. Bf4 {[%emt 0:00:01]} Nc6 {[%emt 0:00:00]} 6. e3 {[%emt 0:00:03]} a6 {[%emt 0:00:01]} 7. Rc1 {[%emt 0:00:13]} Bf5 {[%emt 0:00:03]} 8. Nf3 {[%emt 0:01:10]} Rc8 {[%emt 0:00:08]} 9. Be2 {[%emt 0:00:18]} e6 {[%emt 0:00:02]} 10. O-O {[%emt 0:01:21]} Bd6 {[%emt 0:00:01]} 11. Bxd6 {[%emt 0:01:08]} Qxd6 {[%emt 0:00:02]} 12. Na4 {[%emt 0:00:01]} O-O {[%emt 0:00:16]} 13. Nc5 {[%emt 0:00:06]} Rc7 {[%emt 0:00:02]} 14. Qb3 {[%emt 0:00:31]} Rb8 {[%emt 0:00:02]} 15. Qb6 {[%emt 0:03:57]} Bg4 {[%emt 0:01:30]} 16. Rc2 {[%emt 0:01:08]} Bxf3 {[%emt 0:00:12]} 17. Bxf3 {[%emt 0:00:02]} Nd7 {[%emt 0:00:57]} 18. Nxd7 {[%emt 0:00:30]} Qxd7 {[%emt 0:00:03]} 19. Rfc1 {[%emt 0:00:07]} Rcc8 {[%emt 0:00:17]} 20. Be2 {[%emt 0:01:09]} g6 {[%emt 0:00:17]} 21. g3 {[%emt 0:00:37]} Ne7 {[%emt 0:02:44]} 22. Rc7 {[%emt 0:00:04]} Rxc7 {[%emt 0:00:03]} 23. Rxc7 {[%emt 0:01:14]} Qd8 {[%emt 0:00:02]} 24. a4 {[%emt 0:00:40]} Nc8 {[%emt 0:00:15]} 25. Qc5 {[%emt 0:00:06]} Nd6 {[%emt 0:00:04]} 26. Qa5 {[%emt 0:03:59]} Ne8 {[%emt 0:00:41]} 27. Rc5 {[%emt 0:00:49]} b6 {[%emt 0:00:03]} 0-1